[Event "Pobeskydi 2026"]
[Site "Frydek-Mistek, Czech Republic"]
[Date "2026.04.02"]
[Round "2.11"]
[White "Vanek, Martin"]
[Black "Bjolek, Jan"]
[Result "0-1"]
[TimeControl "90 min+30s/move"]
[WhiteTitle "-"]
[BlackTitle "-"]
[WhiteFideId "23769238"]
[BlackFideId "23725800"]
[WhiteElo "1905"]
[BlackElo "2026"]

1. d4 {[%clk 01:30:57]} {[%emt 00:00:02]} e6 {[%clk 01:30:57]} {[%emt
00:00:04]} 2. c4 {[%clk 01:31:20]} {[%emt 00:00:07]} f5 {[%clk 01:31:23]}
{[%emt 00:00:04]} 3. Nf3 {[%clk 01:31:42]} {[%emt 00:00:07]} Nf6 {[%clk
01:31:43]} {[%emt 00:00:11]} 4. g3 {[%clk 01:31:50]} {[%emt 00:00:20]} b6
{[%clk 01:32:06]} {[%emt 00:00:09]} 5. Bg2 {[%clk 01:31:55]} {[%emt 00:00:24]}
Bb7 {[%clk 01:32:31]} {[%emt 00:00:06]} 6. O-O {[%clk 01:31:17]} {[%emt
00:01:07]} Be7 {[%clk 01:32:35]} {[%emt 00:00:26]} 7. b3 {[%clk 01:24:33]}
{[%emt 00:07:14]} O-O {[%clk 01:31:32]} {[%emt 00:01:32]} 8. Bb2 {[%clk
01:24:22]} {[%emt 00:00:42]} Ne4 {[%clk 01:26:22]} {[%emt 00:05:40]} 9. Nbd2
{[%clk 01:22:02]} {[%emt 00:02:50]} a5 {[%clk 01:21:28]} {[%emt 00:05:25]} 10.
Qc2 {[%clk 01:16:36]} {[%emt 00:05:56]} Na6 {[%clk 01:18:42]} {[%emt 00:03:16]}
11. Rac1 {[%clk 01:11:34]} {[%emt 00:05:31]} Nb4 {[%clk 01:18:22]} {[%emt
00:00:50]} 12. Qb1 {[%clk 01:11:43]} {[%emt 00:00:21]} Nxd2 {[%clk 01:17:04]}
{[%emt 00:01:48]} 13. Nxd2 {[%clk 01:11:58]} {[%emt 00:00:15]} Bxg2 {[%clk
01:17:27]} {[%emt 00:00:07]} 14. Kxg2 {[%clk 01:12:15]} {[%emt 00:00:13]} f4
{[%clk 01:12:17]} {[%emt 00:05:40]} 15. a3 {[%clk 01:08:17]} {[%emt 00:04:28]}
Na6 {[%clk 01:12:25]} {[%emt 00:00:23]} 16. Nf3 {[%clk 01:06:24]} {[%emt
00:02:22]} Qe8 {[%clk 00:55:06]} {[%emt 00:17:49]} 17. Qe4 {[%clk 00:59:31]}
{[%emt 00:07:23]} Bd6 {[%clk 00:36:21]} {[%emt 00:19:15]} 18. Ne5 {[%clk
00:43:57]} {[%emt 00:16:05]} Bxe5 {[%clk 00:35:47]} {[%emt 00:01:04]} 19. Qxe5
{[%clk 00:43:43]} {[%emt 00:00:43]} Qg6 {[%clk 00:32:58]} {[%emt 00:03:19]} 20.
c5 {[%clk 00:31:58]} {[%emt 00:12:16]} bxc5 {[%clk 00:26:36]} {[%emt 00:06:51]}
21. dxc5 {[%clk 00:30:55]} {[%emt 00:01:34]} Rab8 {[%clk 00:20:48]} {[%emt
00:06:18]} 22. Rc3 {[%clk 00:23:02]} {[%emt 00:08:23]} Rf5 {[%clk 00:05:32]}
{[%emt 00:15:46]} 23. Qd4 {[%clk 00:22:58]} {[%emt 00:00:33]} Qf7 {[%clk
00:05:26]} {[%emt 00:00:36]} 24. g4 {[%clk 00:18:36]} {[%emt 00:04:52]} Rd5
{[%clk 00:05:07]} {[%emt 00:00:49]} 25. Qa4 {[%clk 00:16:08]} {[%emt 00:02:59]}
Rxc5 {[%clk 00:01:59]} {[%emt 00:03:38]} 26. Rxc5 {[%clk 00:09:36]} {[%emt
00:07:02]} Nxc5 {[%clk 00:02:28]} {[%emt 00:00:01]} 27. Qxa5 {[%clk 00:09:46]}
{[%emt 00:00:20]} Rxb3 {[%clk 00:01:01]} {[%emt 00:01:56]} 28. Qxc5 {[%clk
00:07:00]} {[%emt 00:03:16]} f3+ {[%clk 00:01:24]} {[%emt 00:00:07]} 29. Kh1
{[%clk 00:02:12]} {[%emt 00:05:18]} fxe2 {[%clk 00:01:43]} {[%emt 00:00:11]} 30.
Rb1 {[%clk 00:02:13]} {[%emt 00:00:29]} Qf3+ {[%clk 00:01:43]} {[%emt
00:00:31]} 31. Kg1 {[%clk 00:02:39]} {[%emt 00:00:03]} Qxg4+ {[%clk 00:01:54]}
{[%emt 00:00:20]} 32. Kh1 {[%clk 00:03:05]} {[%emt 00:00:04]} Qe4+ {[%clk
00:01:57]} {[%emt 00:00:26]} 33. Kg1 {[%clk 00:02:48]} {[%emt 00:00:48]} Qxb1+
{[%clk 00:02:11]} {[%emt 00:00:16]} 34. Kg2 {[%clk 00:03:00]} {[%emt 00:00:18]}
Qf1# {[%clk 00:02:15]} {[%emt 00:00:25]} 0-1

[Event "Pobeskydi 2026"]
[Site "Frydek-Mistek, Czech Republic"]
[Date "2026.04.03"]
[Round "3.1"]
[White "Durana, Jonas"]
[Black "Walek, Petr"]
[Result "0-1"]
[TimeControl "90 min+30s/move"]
[WhiteTitle "-"]
[BlackTitle "-"]
[WhiteFideId "73619663"]
[BlackFideId "339393"]
[WhiteElo "2183"]
[BlackElo "2304"]

1. e4 {[%clk 01:30:57]} {[%emt 00:00:01]} c5 {[%clk 01:30:54]} {[%emt
00:00:06]} 2. Nf3 {[%clk 01:31:23]} {[%emt 00:00:05]} d6 {[%clk 01:30:50]}
{[%emt 00:00:35]} 3. Bb5+ {[%clk 01:31:45]} {[%emt 00:00:07]} Nd7 {[%clk
01:28:16]} {[%emt 00:03:04]} 4. O-O {[%clk 01:31:39]} {[%emt 00:00:35]} a6
{[%clk 01:25:11]} {[%emt 00:03:36]} 5. Bxd7+ {[%clk 01:32:01]} {[%emt
00:00:07]} Bxd7 {[%clk 01:25:34]} {[%emt 00:00:09]} 6. c3 {[%clk 01:32:06]}
{[%emt 00:00:24]} Nf6 {[%clk 01:21:06]} {[%emt 00:04:59]} 7. Re1 {[%clk
01:31:32]} {[%emt 00:01:02]} e6 {[%clk 01:13:24]} {[%emt 00:08:14]} 8. d4
{[%clk 01:31:56]} {[%emt 00:00:05]} cxd4 {[%clk 01:12:24]} {[%emt 00:01:29]} 9.
cxd4 {[%clk 01:32:17]} {[%emt 00:00:08]} d5 {[%clk 01:12:39]} {[%emt 00:00:15]}
10. e5 {[%clk 01:32:07]} {[%emt 00:00:41]} Ne4 {[%clk 01:12:56]} {[%emt
00:00:13]} 11. Nbd2 {[%clk 01:25:04]} {[%emt 00:07:33]} Nxd2 {[%clk 01:09:48]}
{[%emt 00:03:39]} 12. Bxd2 {[%clk 01:25:18]} {[%emt 00:00:16]} Be7 {[%clk
01:09:35]} {[%emt 00:00:42]} 13. a3 {[%clk 01:16:52]} {[%emt 00:08:56]} Rc8
{[%clk 00:59:39]} {[%emt 00:10:26]} 14. Rc1 {[%clk 01:10:23]} {[%emt 00:06:58]}
Rxc1 {[%clk 00:49:34]} {[%emt 00:10:37]} 15. Qxc1 {[%clk 01:10:26]} {[%emt
00:00:26]} O-O {[%clk 00:49:43]} {[%emt 00:00:21]} 16. Re3 {[%clk 01:04:03]}
{[%emt 00:06:52]} Qb8 {[%clk 00:34:24]} {[%emt 00:15:50]} 17. Qb1 {[%clk
00:47:15]} {[%emt 00:17:18]} Rc8 {[%clk 00:31:30]} {[%emt 00:03:24]} 18. Bc3
{[%clk 00:44:05]} {[%emt 00:03:40]} Qc7 {[%clk 00:30:06]} {[%emt 00:01:54]} 19.
Ne1 {[%clk 00:42:36]} {[%emt 00:01:58]} Bb5 {[%clk 00:27:47]} {[%emt 00:02:51]}
20. f4 {[%clk 00:34:43]} {[%emt 00:08:21]} h6 {[%clk 00:19:35]} {[%emt
00:08:43]} 21. Nf3 {[%clk 00:25:38]} {[%emt 00:09:35]} Qc4 {[%clk 00:16:09]}
{[%emt 00:03:56]} 22. Nd2 {[%clk 00:24:58]} {[%emt 00:01:10]} Qa4 {[%clk
00:13:28]} {[%emt 00:03:11]} 23. g4 {[%clk 00:21:39]} {[%emt 00:03:48]} a5
{[%clk 00:12:29]} {[%emt 00:01:30]} 24. Kg2 {[%clk 00:20:08]} {[%emt 00:02:01]}
Bd7 {[%clk 00:10:53]} {[%emt 00:02:06]} 25. Rf3 {[%clk 00:07:06]} {[%emt
00:13:33]} b5 {[%clk 00:07:54]} {[%emt 00:03:28]} 26. Nf1 {[%clk 00:03:46]}
{[%emt 00:03:50]} b4 {[%clk 00:05:49]} {[%emt 00:02:36]} 27. axb4 {[%clk
00:03:43]} {[%emt 00:00:33]} axb4 {[%clk 00:06:12]} {[%emt 00:00:07]} 28. Bd2
{[%clk 00:04:07]} {[%emt 00:00:03]} Bb5 {[%clk 00:05:01]} {[%emt 00:01:43]} 29.
b3 {[%clk 00:03:33]} {[%emt 00:01:05]} Qa7 {[%clk 00:04:05]} {[%emt 00:01:25]}
30. Qb2 {[%clk 00:03:15]} {[%emt 00:00:49]} Be2 {[%clk 00:03:01]} {[%emt
00:01:34]} 31. Rg3 {[%clk 00:02:39]} {[%emt 00:01:05]} Bh4 {[%clk 00:03:00]}
{[%emt 00:00:31]} 32. Re3 {[%clk 00:02:51]} {[%emt 00:00:15]} Qa6 {[%clk
00:01:46]} {[%emt 00:01:47]} 33. Ng3 {[%clk 00:01:02]} {[%emt 00:02:19]} Bd3
{[%clk 00:02:10]} {[%emt 00:00:06]} 0-1

[Event "Pobeskydi 2026"]
[Site "Frydek-Mistek, Czech Republic"]
[Date "2026.04.03"]
[Round "3.2"]
[White "Gnojek, Petr"]
[Black "Zeman, Daniel Nikolas"]
[Result "1-0"]
[TimeControl "90 min+30s/move"]
[WhiteTitle "-"]
[BlackTitle "-"]
[WhiteFideId "371807"]
[BlackFideId "23717130"]
[WhiteElo "2401"]
[BlackElo "1957"]

1. d4 {[%clk 01:30:56]} {[%emt 00:00:03]} d6 {[%clk 01:30:53]} {[%emt
00:00:07]} 2. e4 {[%clk 01:31:10]} {[%emt 00:00:17]} e5 {[%clk 01:31:09]}
{[%emt 00:00:14]} 3. Nf3 {[%clk 01:27:35]} {[%emt 00:04:05]} exd4 {[%clk
01:31:05]} {[%emt 00:00:34]} 4. Nxd4 {[%clk 01:27:29]} {[%emt 00:00:36]} Nf6
{[%clk 01:31:07]} {[%emt 00:00:27]} 5. Nc3 {[%clk 01:25:38]} {[%emt 00:02:21]}
g6 {[%clk 01:29:05]} {[%emt 00:02:32]} 6. g3 {[%clk 01:25:03]} {[%emt
00:01:06]} Bg7 {[%clk 01:29:07]} {[%emt 00:00:28]} 7. Bg2 {[%clk 01:25:27]}
{[%emt 00:00:06]} O-O {[%clk 01:29:14]} {[%emt 00:00:23]} 8. h3 {[%clk
01:21:02]} {[%emt 00:04:55]} Nc6 {[%clk 01:26:13]} {[%emt 00:03:30]} 9. Be3
{[%clk 01:20:54]} {[%emt 00:00:38]} Re8 {[%clk 01:21:50]} {[%emt 00:04:53]} 10.
O-O {[%clk 01:12:38]} {[%emt 00:08:46]} Bd7 {[%clk 01:17:50]} {[%emt 00:04:31]}
11. g4 {[%clk 00:59:42]} {[%emt 00:13:26]} Nxd4 {[%clk 01:09:51]} {[%emt
00:08:28]} 12. Bxd4 {[%clk 00:59:55]} {[%emt 00:00:17]} Bc6 {[%clk 01:09:22]}
{[%emt 00:01:00]} 13. Qd3 {[%clk 00:59:38]} {[%emt 00:00:47]} Nd7 {[%clk
01:00:16]} {[%emt 00:09:35]} 14. Bxg7 {[%clk 00:59:50]} {[%emt 00:00:18]} Kxg7
{[%clk 01:00:44]} {[%emt 00:00:02]} 15. f4 {[%clk 01:00:13]} {[%emt 00:00:07]}
Nc5 {[%clk 01:00:40]} {[%emt 00:00:34]} 16. Qd4+ {[%clk 00:59:32]} {[%emt
00:01:11]} Kg8 {[%clk 00:58:13]} {[%emt 00:02:58]} 17. g5 {[%clk 00:47:10]}
{[%emt 00:12:52]} a5 {[%clk 00:55:20]} {[%emt 00:03:23]} 18. Rae1 {[%clk
00:46:39]} {[%emt 00:01:00]} Qd7 {[%clk 00:52:01]} {[%emt 00:03:50]} 19. Kh2
{[%clk 00:34:09]} {[%emt 00:13:00]} Re7 {[%clk 00:49:46]} {[%emt 00:02:44]} 20.
Nd1 {[%clk 00:34:28]} {[%emt 00:00:12]} Ne6 {[%clk 00:34:49]} {[%emt 00:15:27]}
21. Qd2 {[%clk 00:33:27]} {[%emt 00:01:31]} h5 {[%clk 00:31:44]} {[%emt
00:03:35]} 22. gxh6 {[%clk 00:33:19]} {[%emt 00:00:38]} f6 {[%clk 00:30:35]}
{[%emt 00:01:39]} 23. Ne3 {[%clk 00:33:11]} {[%emt 00:00:38]} Nc5 {[%clk
00:30:11]} {[%emt 00:00:54]} 24. Ng4 {[%clk 00:33:12]} {[%emt 00:00:29]} Rf8
{[%clk 00:30:15]} {[%emt 00:00:26]} 25. f5 {[%clk 00:30:18]} {[%emt 00:03:23]}
g5 {[%clk 00:30:39]} {[%emt 00:00:06]} 26. Nxf6+ {[%clk 00:30:39]} {[%emt
00:00:09]} 1-0

[Event "Pobeskydi 2026"]
[Site "Frydek-Mistek, Czech Republic"]
[Date "2026.04.03"]
[Round "3.3"]
[White "Karas, Marek"]
[Black "Haasova, Timea"]
[Result "1/2-1/2"]
[TimeControl "90 min+30s/move"]
[WhiteTitle "-"]
[BlackTitle "-"]
[WhiteFideId "14928558"]
[BlackFideId "14960109"]
[WhiteElo "2232"]
[BlackElo "2012"]

1. c4 {[%clk 01:30:41]} {[%emt 00:00:18]} e5 {[%clk 01:30:49]} {[%emt
00:00:12]} 2. Nc3 {[%clk 01:30:54]} {[%emt 00:00:15]} Nf6 {[%clk 01:30:57]}
{[%emt 00:00:23]} 3. Nf3 {[%clk 01:31:10]} {[%emt 00:00:13]} Nc6 {[%clk
01:31:03]} {[%emt 00:00:25]} 4. e3 {[%clk 01:31:27]} {[%emt 00:00:12]} d5
{[%clk 01:20:49]} {[%emt 00:10:45]} 5. cxd5 {[%clk 01:31:45]} {[%emt 00:00:12]}
Nxd5 {[%clk 01:21:05]} {[%emt 00:00:15]} 6. Bb5 {[%clk 01:32:07]} {[%emt
00:00:07]} Nxc3 {[%clk 01:14:00]} {[%emt 00:07:35]} 7. bxc3 {[%clk 01:32:31]}
{[%emt 00:00:06]} Bd7 {[%clk 01:10:21]} {[%emt 00:04:09]} 8. d4 {[%clk
01:32:18]} {[%emt 00:00:42]} e4 {[%clk 01:03:53]} {[%emt 00:06:58]} 9. Nd2
{[%clk 01:25:38]} {[%emt 00:07:10]} Qg5 {[%clk 00:59:22]} {[%emt 00:05:03]} 10.
Bf1 {[%clk 01:25:57]} {[%emt 00:00:10]} f5 {[%clk 00:52:05]} {[%emt 00:07:48]}
11. g3 {[%clk 01:23:36]} {[%emt 00:02:49]} a6 {[%clk 00:45:30]} {[%emt
00:07:06]} 12. Rb1 {[%clk 01:21:52]} {[%emt 00:02:14]} b5 {[%clk 00:43:42]}
{[%emt 00:02:19]} 13. Be2 {[%clk 01:14:16]} {[%emt 00:08:05]} Be7 {[%clk
00:40:15]} {[%emt 00:03:58]} 14. Qb3 {[%clk 01:09:23]} {[%emt 00:05:21]} Na5
{[%clk 00:37:01]} {[%emt 00:03:45]} 15. Qc2 {[%clk 01:09:18]} {[%emt 00:00:33]}
c5 {[%clk 00:30:48]} {[%emt 00:06:45]} 16. Nb3 {[%clk 01:04:37]} {[%emt
00:05:11]} Nxb3 {[%clk 00:28:58]} {[%emt 00:02:20]} 17. axb3 {[%clk 01:04:40]}
{[%emt 00:00:27]} Rc8 {[%clk 00:27:12]} {[%emt 00:02:16]} 18. Qa2 {[%clk
01:02:09]} {[%emt 00:03:01]} Qf6 {[%clk 00:24:46]} {[%emt 00:02:56]} 19. Bd2
{[%clk 01:00:52]} {[%emt 00:01:46]} h5 {[%clk 00:15:04]} {[%emt 00:10:13]} 20.
h4 {[%clk 01:00:06]} {[%emt 00:01:16]} Qc6 {[%clk 00:15:16]} {[%emt 00:00:19]}
21. Ra1 {[%clk 00:55:19]} {[%emt 00:05:16]} Rh6 {[%clk 00:15:13]} {[%emt
00:00:33]} 22. Rg1 {[%clk 00:46:51]} {[%emt 00:08:58]} g5 {[%clk 00:11:39]}
{[%emt 00:04:04]} 23. hxg5 {[%clk 00:44:26]} {[%emt 00:02:54]} Bxg5 {[%clk
00:11:56]} {[%emt 00:00:14]} 24. c4 {[%clk 00:38:40]} {[%emt 00:06:16]} h4
{[%clk 00:05:10]} {[%emt 00:07:16]} 25. gxh4 {[%clk 00:36:21]} {[%emt
00:02:49]} Bxh4 {[%clk 00:05:29]} {[%emt 00:00:11]} 26. b4 {[%clk 00:34:34]}
{[%emt 00:02:16]} Qd6 {[%clk 00:01:07]} {[%emt 00:04:53]} 27. bxc5 {[%clk
00:25:45]} {[%emt 00:09:19]} Bxf2+ {[%clk 00:00:55]} {[%emt 00:00:42]} 28. Kd1
{[%clk 00:25:52]} {[%emt 00:00:23]} Qh2 {[%clk 00:00:43]} {[%emt 00:00:42]} 29.
Rg7 {[%clk 00:24:28]} {[%emt 00:01:53]} Rh7 {[%clk 00:00:35]} {[%emt 00:00:39]}
30. Rxd7 {[%clk 00:22:44]} {[%emt 00:02:14]} Rxd7 {[%clk 00:00:34]} {[%emt
00:00:32]} 31. Qxa6 {[%clk 00:22:47]} {[%emt 00:00:26]} Qc7 {[%clk 00:00:35]}
{[%emt 00:00:29]} 32. cxb5 {[%clk 00:19:20]} {[%emt 00:03:56]} f4 {[%clk
00:00:36]} {[%emt 00:00:30]} 33. Ba5 {[%clk 00:18:29]} {[%emt 00:01:20]} Qxc5
{[%clk 00:00:45]} {[%emt 00:00:22]} 34. Bh5+ {[%clk 00:14:23]} {[%emt
00:04:32]} Ke7 {[%clk 00:01:08]} {[%emt 00:00:11]} 35. Bb4 {[%clk 00:13:46]}
{[%emt 00:01:07]} 1/2-1/2

[Event "Pobeskydi 2026"]
[Site "Frydek-Mistek, Czech Republic"]
[Date "2026.04.03"]
[Round "3.4"]
[White "Buchtova, Viktorie"]
[Black "Sigut, Ondrej"]
[Result "0-1"]
[TimeControl "90 min+30s/move"]
[WhiteTitle "-"]
[BlackTitle "-"]
[WhiteFideId "23714786"]
[BlackFideId "23712813"]
[WhiteElo "2055"]
[BlackElo "2016"]

1. e4 {[%clk 01:30:58]} {[%emt 00:00:02]} e6 {[%clk 01:30:56]} {[%emt
00:00:04]} 2. d4 {[%clk 01:31:24]} {[%emt 00:00:03]} d5 {[%clk 01:31:22]}
{[%emt 00:00:04]} 3. Nc3 {[%clk 01:31:53]} {[%emt 00:00:02]} Nf6 {[%clk
01:31:46]} {[%emt 00:00:06]} 4. e5 {[%clk 01:32:11]} {[%emt 00:00:12]} Nfd7
{[%clk 01:32:11]} {[%emt 00:00:05]} 5. f4 {[%clk 01:32:35]} {[%emt 00:00:06]}
c5 {[%clk 01:32:34]} {[%emt 00:00:07]} 6. Nf3 {[%clk 01:33:02]} {[%emt
00:00:03]} Nc6 {[%clk 01:32:53]} {[%emt 00:00:11]} 7. Be3 {[%clk 01:33:26]}
{[%emt 00:00:06]} h6 {[%clk 01:26:01]} {[%emt 00:07:22]} 8. a3 {[%clk
01:26:11]} {[%emt 00:07:45]} cxd4 {[%clk 01:09:31]} {[%emt 00:16:59]} 9. Nxd4
{[%clk 01:26:21]} {[%emt 00:00:20]} a6 {[%clk 00:59:41]} {[%emt 00:10:22]} 10.
Qg4 {[%clk 01:17:03]} {[%emt 00:09:47]} Nxd4 {[%clk 00:54:45]} {[%emt
00:05:27]} 11. Bxd4 {[%clk 01:17:25]} {[%emt 00:00:07]} g5 {[%clk 00:50:18]}
{[%emt 00:04:57]} 12. f5 {[%clk 00:58:53]} {[%emt 00:19:02]} h5 {[%clk
00:42:25]} {[%emt 00:08:23]} 13. Qf3 {[%clk 00:57:03]} {[%emt 00:02:20]} Bc5
{[%clk 00:36:15]} {[%emt 00:06:40]} 14. fxe6 {[%clk 00:56:02]} {[%emt
00:01:32]} fxe6 {[%clk 00:36:32]} {[%emt 00:00:12]} 15. Bd3 {[%clk 00:54:52]}
{[%emt 00:01:39]} Qe7 {[%clk 00:34:54]} {[%emt 00:02:09]} 16. Bg6+ {[%clk
00:52:22]} {[%emt 00:02:59]} Kd8 {[%clk 00:35:21]} {[%emt 00:00:04]} 17. Bxc5
{[%clk 00:52:33]} {[%emt 00:00:19]} Qxc5 {[%clk 00:32:54]} {[%emt 00:02:57]} 18.
O-O-O {[%clk 00:49:20]} {[%emt 00:03:42]} Kc7 {[%clk 00:30:10]} {[%emt
00:03:16]} 19. Rhe1 {[%clk 00:36:59]} {[%emt 00:12:50]} Nb6 {[%clk 00:28:52]}
{[%emt 00:01:48]} 20. Bxh5 {[%clk 00:32:43]} {[%emt 00:04:45]} Bd7 {[%clk
00:27:24]} {[%emt 00:01:59]} 21. Bg4 {[%clk 00:30:17]} {[%emt 00:02:55]} Raf8
{[%clk 00:25:48]} {[%emt 00:02:06]} 22. Qg3 {[%clk 00:28:25]} {[%emt 00:02:22]}
Kb8 {[%clk 00:14:47]} {[%emt 00:11:32]} 23. h3 {[%clk 00:27:51]} {[%emt
00:01:04]} Rf4 {[%clk 00:11:05]} {[%emt 00:04:12]} 24. Qd3 {[%clk 00:21:40]}
{[%emt 00:06:40]} Rc8 {[%clk 00:10:04]} {[%emt 00:01:32]} 25. Rd2 {[%clk
00:20:16]} {[%emt 00:01:54]} Nc4 {[%clk 00:08:26]} {[%emt 00:02:08]} 26. Rde2
{[%clk 00:20:02]} {[%emt 00:00:45]} Rd4 {[%clk 00:06:57]} {[%emt 00:01:58]} 27.
Qh7 {[%clk 00:12:35]} {[%emt 00:07:57]} Nxb2 {[%clk 00:05:53]} {[%emt
00:01:35]} 28. Qxd7 {[%clk 00:10:32]} {[%emt 00:02:32]} Qxc3 {[%clk 00:05:04]}
{[%emt 00:01:19]} 29. Qxc8+ {[%clk 00:02:59]} {[%emt 00:08:03]} Kxc8 {[%clk
00:05:28]} {[%emt 00:00:06]} 30. Bxe6+ {[%clk 00:03:25]} {[%emt 00:00:03]} Kb8
{[%clk 00:05:24]} {[%emt 00:00:35]} 31. Bf5 {[%clk 00:03:34]} {[%emt 00:00:22]}
Nc4 {[%clk 00:05:44]} {[%emt 00:00:09]} 0-1

[Event "Pobeskydi 2026"]
[Site "Frydek-Mistek, Czech Republic"]
[Date "2026.04.03"]
[Round "3.5"]
[White "Sarkozi, Szabolcs"]
[Black "Langmaier, Michal"]
[Result "0-1"]
[TimeControl "90 min+30s/move"]
[WhiteTitle "-"]
[BlackTitle "-"]
[WhiteFideId "14941660"]
[BlackFideId "23727705"]
[WhiteElo "2117"]
[BlackElo "1949"]

1. e4 {[%clk 01:30:49]} {[%emt 00:00:10]} c5 {[%clk 01:30:47]} {[%emt
00:00:13]} 2. Nc3 {[%clk 01:31:11]} {[%emt 00:00:09]} e6 {[%clk 01:30:26]}
{[%emt 00:00:51]} 3. d4 {[%clk 01:31:26]} {[%emt 00:00:14]} cxd4 {[%clk
01:30:48]} {[%emt 00:00:08]} 4. Qxd4 {[%clk 01:31:51]} {[%emt 00:00:05]} Nc6
{[%clk 01:31:07]} {[%emt 00:00:12]} 5. Qe3 {[%clk 01:32:09]} {[%emt 00:00:12]}
Nf6 {[%clk 01:30:09]} {[%emt 00:01:27]} 6. Nf3 {[%clk 01:32:33]} {[%emt
00:00:06]} Bb4 {[%clk 01:28:41]} {[%emt 00:01:58]} 7. Bd2 {[%clk 01:32:57]}
{[%emt 00:00:07]} O-O {[%clk 01:27:44]} {[%emt 00:01:26]} 8. O-O-O {[%clk
01:32:49]} {[%emt 00:00:38]} d6 {[%clk 01:25:17]} {[%emt 00:02:57]} 9. a3
{[%clk 01:32:01]} {[%emt 00:01:18]} Bc5 {[%clk 01:24:52]} {[%emt 00:00:55]} 10.
Qe2 {[%clk 01:32:22]} {[%emt 00:00:09]} Qe7 {[%clk 01:18:47]} {[%emt 00:06:35]}
11. Bg5 {[%clk 01:29:59]} {[%emt 00:02:53]} a6 {[%clk 01:12:38]} {[%emt
00:06:39]} 12. g4 {[%clk 01:20:20]} {[%emt 00:10:08]} b5 {[%clk 01:08:57]}
{[%emt 00:04:12]} 13. Rg1 {[%clk 00:55:59]} {[%emt 00:24:52]} b4 {[%clk
01:01:52]} {[%emt 00:07:35]} 14. Na4 {[%clk 00:55:38]} {[%emt 00:00:51]} bxa3
{[%clk 00:47:03]} {[%emt 00:15:19]} 15. b3 {[%clk 00:44:47]} {[%emt 00:11:21]}
e5 {[%clk 00:41:05]} {[%emt 00:06:28]} 16. h3 {[%clk 00:34:59]} {[%emt
00:10:18]} Be6 {[%clk 00:35:08]} {[%emt 00:06:26]} 17. Bh4 {[%clk 00:23:21]}
{[%emt 00:12:09]} Bd4 {[%clk 00:26:20]} {[%emt 00:09:18]} 18. g5 {[%clk
00:13:43]} {[%emt 00:10:08]} Nxe4 {[%clk 00:19:45]} {[%emt 00:07:05]} 19. Nxd4
{[%clk 00:13:34]} {[%emt 00:00:38]} Nxd4 {[%clk 00:19:22]} {[%emt 00:00:53]} 20.
Rxd4 {[%clk 00:13:12]} {[%emt 00:00:51]} exd4 {[%clk 00:17:50]} {[%emt
00:02:03]} 21. Qxe4 {[%clk 00:13:17]} {[%emt 00:00:25]} Qc7 {[%clk 00:14:10]}
{[%emt 00:04:11]} 22. Bd3 {[%clk 00:05:38]} {[%emt 00:08:09]} g6 {[%clk
00:14:34]} {[%emt 00:00:06]} 23. Kb1 {[%clk 00:06:02]} {[%emt 00:00:05]} Rab8
{[%clk 00:09:51]} {[%emt 00:05:12]} 24. Qxd4 {[%clk 00:02:38]} {[%emt
00:03:55]} a5 {[%clk 00:07:05]} {[%emt 00:03:16]} 25. Bg3 {[%clk 00:02:15]}
{[%emt 00:00:54]} Rfd8 {[%clk 00:06:58]} {[%emt 00:00:36]} 26. Re1 {[%clk
00:00:41]} {[%emt 00:02:04]} Rb4 {[%clk 00:05:22]} {[%emt 00:02:07]} 27. Qf6
{[%clk 00:00:52]} {[%emt 00:00:18]} Bxb3 {[%clk 00:04:35]} {[%emt 00:01:17]} 28.
cxb3 {[%clk 00:00:39]} {[%emt 00:00:43]} Rxb3+ {[%clk 00:05:00]} {[%emt
00:00:05]} 29. Ka1 {[%clk 00:00:32]} {[%emt 00:00:37]} Rxd3 {[%clk 00:04:45]}
{[%emt 00:00:46]} 30. Bf4 {[%clk 00:00:45]} {[%emt 00:00:17]} Rb8 {[%clk
00:02:44]} {[%emt 00:02:31]} 31. Rc1 {[%clk 00:00:42]} {[%emt 00:00:33]} Qd8
{[%clk 00:00:51]} {[%emt 00:02:22]} 32. Qxd8+ {[%clk 00:00:32]} {[%emt
00:00:40]} Rxd8 {[%clk 00:01:20]} {[%emt 00:00:01]} 33. Nb6 {[%clk 00:00:44]}
{[%emt 00:00:18]} Rf3 {[%clk 00:00:43]} {[%emt 00:01:06]} 34. Nd5 {[%clk
00:00:52]} {[%emt 00:00:22]} Rxf2 {[%clk 00:00:35]} {[%emt 00:00:39]} 35. Be3
{[%clk 00:00:56]} {[%emt 00:00:26]} Rf3 {[%clk 00:00:36]} {[%emt 00:00:28]} 36.
Bb6 {[%clk 00:00:58]} {[%emt 00:00:28]} Rb8 {[%clk 00:00:37]} {[%emt 00:00:29]}
37. Bxa5 {[%clk 00:00:44]} {[%emt 00:00:45]} a2 {[%clk 00:00:33]} {[%emt
00:00:34]} 38. Bc3 {[%clk 00:00:48]} {[%emt 00:00:26]} Rb1+ {[%clk 00:00:34]}
{[%emt 00:00:29]} 39. Rxb1 {[%clk 00:00:54]} {[%emt 00:00:23]} axb1=Q+ {[%clk
00:00:57]} {[%emt 00:00:08]} 40. Kxb1 {[%clk 00:01:19]} {[%emt 00:00:04]} Rxh3
{[%clk 00:00:53]} {[%emt 00:00:34]} 41. Nf6+ {[%clk 00:01:14]} {[%emt
00:00:36]} Kf8 {[%clk 00:00:54]} {[%emt 00:00:27]} 42. Kc2 {[%clk 00:01:05]}
{[%emt 00:00:41]} h6 {[%clk 00:00:34]} {[%emt 00:00:49]} 43. Nh7+ {[%clk
00:00:42]} {[%emt 00:00:53]} Ke7 {[%clk 00:00:44]} {[%emt 00:00:20]} 44. Kd2
{[%clk 00:00:46]} {[%emt 00:00:26]} hxg5 {[%clk 00:00:40]} {[%emt 00:00:34]} 45.
Nxg5 {[%clk 00:01:14]} {[%emt 00:00:02]} Rh2+ {[%clk 00:00:41]} {[%emt
00:00:29]} 46. Ke3 {[%clk 00:01:22]} {[%emt 00:00:22]} f6 {[%clk 00:00:36]}
{[%emt 00:00:35]} 47. Ne4 {[%clk 00:01:34]} {[%emt 00:00:18]} Rh3+ {[%clk
00:00:33]} {[%emt 00:00:33]} 48. Kf4 {[%clk 00:01:05]} {[%emt 00:00:59]} Rxc3
{[%clk 00:00:34]} {[%emt 00:00:29]} 49. Nxc3 {[%clk 00:01:33]} {[%emt
00:00:02]} Ke6 {[%clk 00:01:00]} {[%emt 00:00:05]} 50. Ne4 {[%clk 00:01:30]}
{[%emt 00:00:32]} g5+ {[%clk 00:01:10]} {[%emt 00:00:20]} 51. Kf3 {[%clk
00:01:19]} {[%emt 00:00:41]} Ke5 {[%clk 00:01:29]} {[%emt 00:00:12]} 52. Ng3
{[%clk 00:01:24]} {[%emt 00:00:24]} f5 {[%clk 00:01:30]} {[%emt 00:00:29]} 53.
Nh5 {[%clk 00:01:27]} {[%emt 00:00:28]} d5 {[%clk 00:01:31]} {[%emt 00:00:29]}
54. Ng7 {[%clk 00:01:52]} {[%emt 00:00:04]} d4 {[%clk 00:01:36]} {[%emt
00:00:26]} 55. Ne8 {[%clk 00:01:52]} {[%emt 00:00:29]} g4+ {[%clk 00:01:39]}
{[%emt 00:00:27]} 56. Ke2 {[%clk 00:00:59]} {[%emt 00:01:23]} g3 {[%clk
00:01:46]} {[%emt 00:00:23]} 57. Nc7 {[%clk 00:01:15]} {[%emt 00:00:14]} d3+
{[%clk 00:01:59]} {[%emt 00:00:16]} 0-1